Workbook

Sheet total time
B1: The Swim vs. Run Problem
B3: This DIGMath module lets you investigate
B4: the calculus problem of finding
C5: the best combination
C6: of running and swimming
B7: to get from one point A to another B
C8: in the minimum time.
A11: How fast can you run (10-20 ft/sec.)? | F11: =D12 -> 13
D12: 13 | E12: =#REF!+D12*(#REF!-#REF!)/100 -> 
A15: How fast can you swim (3 - 8 ft/sec.)? | F15: =D16 -> 6
D16: 6 | E16: =#REF!+D16*(#REF!-#REF!)/100 -> 
A21: ="Running "&TEXT(1000-x0,"0") &" feet at " &TEXT(RR,"0") & " feet per second takes " &TEXT((1000-x0)/RR,"0.0") & " seconds" -> Running 768 feet at 13 feet per second takes 59.1 seconds
A23: ="Swimming "&TEXT(Sheet2!L6,"0") &" feet at " &TEXT(s,"0") & " feet per second takes " &TEXT(Sheet2!L7,"0.0") & " seconds" -> Swimming 306 feet at 6 feet per second takes 51.1 seconds
D25: Total time = | F25: =(1000-x0)/RR +Sheet2!L7 -> 110.1 | G25: seconds
A29: Click each item below for suggestions and investigations
C30: Item 1 | M30: The graph of the function y = | P30: ="(1000-x)/" & TEXT(RR,"0") & "+ sqrt(x^2 + 200^2)/" & TEXT(s,"0") -> (1000-x)/13+ sqrt(x^2 + 200^2)/6
C31: Item 2
C32: Item 3
L33: Select the point where you take to the water: x0 = | Q33: =O35 -> 232 | R33: feet
O35: 232 | P35: =Sheet2!H7+O35*(Sheet2!H8-Sheet2!H7)/100 -> 2320
A36: To access/download all the DIGMath Apps for Calculus
A37: Click this link: | C37: DIGMath for Calculus | L37: The value of the derivative there is T' = | Q37: =Sheet2!I25 -> 0.049
A39: Created by: Sheldon P. Gordon
A40: Farmingdale State College
A41: Development of this module was supported by the
A42: NSF's Division of Undergraduate Education
A43: under grants DUE-0310123 and DUE-0442160.

Sheet Sheet2
B1: x | C1: f(x) | D1: f'(x) | G1: xl= | H1: =IF('total time'!$P$35<Sheet2!H7+80*Sheet2!H5,Sheet2!H7,'total time'!P35-80*Sheet2!H5) -> 2240 | I1: =LOOKUP('total time'!P35,Sheet2!B3:B1002,Sheet2!C3:C1002)+LOOKUP('total time'!P35,Sheet2!B3:B1002,Sheet2!D3:D1002)*(H1-'total time'!P35) -> 116.2670842 | J1: "=yl
G2: xr= | H2: =IF('total time'!$P$35>Sheet2!H8-80*Sheet2!H5,Sheet2!H8,'total time'!P35+80*Sheet2!H5) -> 1000 | I2: =LOOKUP('total time'!P35,Sheet2!B3:B1003,Sheet2!C3:C1003)+LOOKUP('total time'!P35,Sheet2!B3:B1003,Sheet2!D3:D1003)*(H2-'total time'!P35) -> 211.7948718 | J2: "=yR
A3: 0 | B3: 1000 | C3: =(1000-B3)/RR+SQRT(B3^2+200^2)/s -> 169.9673171 | D3: =-1/RR+B3/SQRT(B3^2+200^2)/s -> 0.08650703569
A4: 1 | B4: 999 | C4: 169.8808132 | D4: 0.08650074084
A5: 2 | B5: 998 | C5: 169.7943156 | D5: 0.08649442779 | G5: delta x = | H5: =(xMax-xMin)/1000 -> 1 | K5: swim distance
A6: 3 | B6: 997 | C6: 169.7078244 | D6: 0.08648809647 | K6: distance = | L6: =SQRT(x0^2+200^2) -> 306.3070355
A7: 4 | B7: 996 | C7: 169.6213395 | D7: 0.0864817468 | G7: xMin = | H7: 0 | K7: time = | L7: =L6/s -> 51.05117258
A8: 5 | B8: 995 | C8: 169.5348609 | D8: 0.08647537873 | G8: xMax = | H8: 1000
A9: 6 | B9: 994 | C9: 169.4483887 | D9: 0.08646899217
A10: 7 | B10: 993 | C10: 169.3619229 | D10: 0.08646258706
A11: 8 | B11: 992 | C11: 169.2754635 | D11: 0.08645616333 | G11: Point
A12: 9 | B12: 991 | C12: 169.1890106 | D12: 0.0864497209 | G12: =1000-x0 -> 768 | H12: 0
A13: 10 | B13: 990 | C13: 169.1025641 | D13: 0.08644325971
A14: 11 | B14: 989 | C14: 169.0161241 | D14: 0.08643677968 | G14: Horizontal Line
A15: 12 | B15: 988 | C15: 168.9296905 | D15: 0.08643028073 | G15: 0 | H15: 0
A16: 13 | B16: 987 | C16: 168.8432635 | D16: 0.08642376281 | G16: =G12 -> 768 | H16: 0
A17: 14 | B17: 986 | C17: 168.756843 | D17: 0.08641722582
A18: 15 | B18: 985 | C18: 168.6704291 | D18: 0.0864106697 | G18: Diagnonal Line
A19: 16 | B19: 984 | C19: 168.5840217 | D19: 0.08640409438 | G19: =G16 -> 768 | H19: 0
A20: 17 | B20: 983 | C20: 168.4976209 | D20: 0.08639749977 | G20: 1000 | H20: 200
A21: 18 | B21: 982 | C21: 168.4112267 | D21: 0.08639088582
A22: 19 | B22: 981 | C22: 168.3248391 | D22: 0.08638425243
A23: 20 | B23: 980 | C23: 168.2384582 | D23: 0.08637759954 | G23: Point on curve | I23: T'
A24: 21 | B24: 979 | C24: 168.1520839 | D24: 0.08637092707 | G24: x= | H24: =G12*H5 -> 768 | I24: =H24 -> 768
A25: 22 | B25: 978 | C25: 168.0657164 | D25: 0.08636423494 | G25: =1000-H24 -> 232 | H25: =LOOKUP(H24,A3:A1003,C3:C1003) -> 110.1280957 | I25: =LOOKUP(H24,A3:A1003,D3:D1003) -> 0.04931191668
A26: 23 | B26: 977 | C26: 167.9793555 | D26: 0.08635752308 | G26: =G25 -> 232 | H26: 0 | I26: 0
A27: 24 | B27: 976 | C27: 167.8930013 | D27: 0.08635079141
A28: 25 | B28: 975 | C28: 167.8066539 | D28: 0.08634403985
A29: 26 | B29: 974 | C29: 167.7203132 | D29: 0.08633726833
A30: 27 | B30: 973 | C30: 167.6339794 | D30: 0.08633047676
A31: 28 | B31: 972 | C31: 167.5476523 | D31: 0.08632366508
A32: 29 | B32: 971 | C32: 167.461332 | D32: 0.08631683319
A33: 30 | B33: 970 | C33: 167.3750186 | D33: 0.08630998103
A34: 31 | B34: 969 | C34: 167.2887121 | D34: 0.0863031085
A35: 32 | B35: 968 | C35: 167.2024124 | D35: 0.08629621554
A36: 33 | B36: 967 | C36: 167.1161197 | D36: 0.08628930206
A37: 34 | B37: 966 | C37: 167.0298338 | D37: 0.08628236798
A38: 35 | B38: 965 | C38: 166.9435549 | D38: 0.08627541322
A39: 36 | B39: 964 | C39: 166.857283 | D39: 0.0862684377
A40: 37 | B40: 963 | C40: 166.7710181 | D40: 0.08626144134
A41: 38 | B41: 962 | C41: 166.6847601 | D41: 0.08625442405
A42: 39 | B42: 961 | C42: 166.5985092 | D42: 0.08624738575
A43: 40 | B43: 960 | C43: 166.5122654 | D43: 0.08624032637
A44: 41 | B44: 959 | C44: 166.4260286 | D44: 0.0862332458
A45: 42 | B45: 958 | C45: 166.3397989 | D45: 0.08622614398
A46: 43 | B46: 957 | C46: 166.2535763 | D46: 0.08621902082
A47: 44 | B47: 956 | C47: 166.1673609 | D47: 0.08621187623
A48: 45 | B48: 955 | C48: 166.0811526 | D48: 0.08620471012
A49: 46 | B49: 954 | C49: 165.9949514 | D49: 0.08619752242
A50: 47 | B50: 953 | C50: 165.9087575 | D50: 0.08619031303
A51: 48 | B51: 952 | C51: 165.8225708 | D51: 0.08618308188
A52: 49 | B52: 951 | C52: 165.7363914 | D52: 0.08617582887
A53: 50 | B53: 950 | C53: 165.6502192 | D53: 0.08616855391
A54: 51 | B54: 949 | C54: 165.5640543 | D54: 0.08616125692
A55: 52 | B55: 948 | C55: 165.4778967 | D55: 0.08615393781
A56: 53 | B56: 947 | C56: 165.3917464 | D56: 0.08614659649
A57: 54 | B57: 946 | C57: 165.3056035 | D57: 0.08613923288
A58: 55 | B58: 945 | C58: 165.2194679 | D58: 0.08613184688
A59: 56 | B59: 944 | C59: 165.1333398 | D59: 0.0861244384
A60: 57 | B60: 943 | C60: 165.0472191 | D60: 0.08611700735
A61: 58 | B61: 942 | C61: 164.9611058 | D61: 0.08610955365
A62: 59 | B62: 941 | C62: 164.875 | D62: 0.0861020772
A63: 60 | B63: 940 | C63: 164.7889016 | D63: 0.08609457791
A64: 61 | B64: 939 | C64: 164.7028108 | D64: 0.08608705568
A65: 62 | B65: 938 | C65: 164.6167275 | D65: 0.08607951044
A66: 63 | B66: 937 | C66: 164.5306518 | D66: 0.08607194207
A67: 64 | B67: 936 | C67: =(1000-B67)/RR+SQRT(B67^2+200^2)/s -> 164.4445837 | D67: =-1/RR+B67/SQRT(B67^2+200^2)/s -> 0.08606435049
A68: 65 | B68: 935 | C68: 164.3585231 | D68: 0.08605673561
A69: 66 | B69: 934 | C69: 164.2724702 | D69: 0.08604909733
A70: 67 | B70: 933 | C70: 164.1864249 | D70: 0.08604143555
A71: 68 | B71: 932 | C71: 164.1003873 | D71: 0.08603375018
A72: 69 | B72: 931 | C72: 164.0143574 | D72: 0.08602604113
A73: 70 | B73: 930 | C73: 163.9283353 | D73: 0.08601830829
A74: 71 | B74: 929 | C74: 163.8423208 | D74: 0.08601055158
A75: 72 | B75: 928 | C75: 163.7563142 | D75: 0.08600277089
A76: 73 | B76: 927 | C76: 163.6703153 | D76: 0.08599496613
A77: 74 | B77: 926 | C77: 163.5843242 | D77: 0.08598713719
A78: 75 | B78: 925 | C78: 163.498341 | D78: 0.08597928398
A79: 76 | B79: 924 | C79: 163.4123657 | D79: 0.08597140641
A80: 77 | B80: 923 | C80: 163.3263982 | D80: 0.08596350436
A81: 78 | B81: 922 | C81: 163.2404387 | D81: 0.08595557774
A82: 79 | B82: 921 | C82: 163.1544871 | D82: 0.08594762646
A83: 80 | B83: 920 | C83: 163.0685434 | D83: 0.0859396504
A84: 81 | B84: 919 | C84: 162.9826078 | D84: 0.08593164946
A85: 82 | B85: 918 | C85: 162.8966801 | D85: 0.08592362355
A86: 83 | B86: 917 | C86: 162.8107605 | D86: 0.08591557257
A87: 84 | B87: 916 | C87: 162.724849 | D87: 0.08590749639
A88: 85 | B88: 915 | C88: 162.6389456 | D88: 0.08589939494
A89: 86 | B89: 914 | C89: 162.5530502 | D89: 0.08589126809
A90: 87 | B90: 913 | C90: 162.467163 | D90: 0.08588311575
A91: 88 | B91: 912 | C91: 162.381284 | D91: 0.0858749378
A92: 89 | B92: 911 | C92: 162.2954132 | D92: 0.08586673415
A93: 90 | B93: 910 | C93: 162.2095505 | D93: 0.08585850468
A94: 91 | B94: 909 | C94: 162.1236962 | D94: 0.0858502493
A95: 92 | B95: 908 | C95: 162.0378501 | D95: 0.08584196788
A96: 93 | B96: 907 | C96: 161.9520122 | D96: 0.08583366033
A97: 94 | B97: 906 | C97: 161.8661827 | D97: 0.08582532653
A98: 95 | B98: 905 | C98: 161.7803616 | D98: 0.08581696638
A99: 96 | B99: 904 | C99: 161.6945488 | D99: 0.08580857977
A100: 97 | B100: 903 | C100: 161.6087444 | D100: 0.08580016658
A101: 98 | B101: 902 | C101: 161.5229485 | D101: 0.0857917267
A102: 99 | B102: 901 | C102: 161.437161 | D102: 0.08578326003
A103: 100 | B103: 900 | C103: 161.351382 | D103: 0.08577476644
A104: 101 | B104: 899 | C104: 161.2656115 | D104: 0.08576624583
A105: 102 | B105: 898 | C105: 161.1798495 | D105: 0.08575769809
A106: 103 | B106: 897 | C106: 161.0940961 | D106: 0.0857491231
A107: 104 | B107: 896 | C107: 161.0083513 | D107: 0.08574052074
A108: 105 | B108: 895 | C108: 160.9226151 | D108: 0.08573189091
A109: 106 | B109: 894 | C109: 160.8368875 | D109: 0.08572323347
A110: 107 | B110: 893 | C110: 160.7511686 | D110: 0.08571454833
A111: 108 | B111: 892 | C111: 160.6654584 | D111: 0.08570583536
A112: 109 | B112: 891 | C112: 160.5797569 | D112: 0.08569709444
A113: 110 | B113: 890 | C113: 160.4940642 | D113: 0.08568832546
A114: 111 | B114: 889 | C114: 160.4083803 | D114: 0.0856795283
A115: 112 | B115: 888 | C115: 160.3227052 | D115: 0.08567070284
A116: 113 | B116: 887 | C116: 160.2370389 | D116: 0.08566184895
A117: 114 | B117: 886 | C117: 160.1513815 | D117: 0.08565296652
A118: 115 | B118: 885 | C118: 160.065733 | D118: 0.08564405542
A119: 116 | B119: 884 | C119: 159.9800934 | D119: 0.08563511554
A120: 117 | B120: 883 | C120: 159.8944628 | D120: 0.08562614676
A121: 118 | B121: 882 | C121: 159.8088411 | D121: 0.08561714894
A122: 119 | B122: 881 | C122: 159.7232285 | D122: 0.08560812196
A123: 120 | B123: 880 | C123: 159.6376249 | D123: 0.08559906571
A124: 121 | B124: 879 | C124: 159.5520303 | D124: 0.08558998005
A125: 122 | B125: 878 | C125: 159.4664449 | D125: 0.08558086486
A126: 123 | B126: 877 | C126: 159.3808686 | D126: 0.08557172001
A127: 124 | B127: 876 | C127: 159.2953015 | D127: 0.08556254538
A128: 125 | B128: 875 | C128: 159.2097435 | D128: 0.08555334084
A129: 126 | B129: 874 | C129: 159.1241948 | D129: 0.08554410626
A130: 127 | B130: 873 | C130: 159.0386553 | D130: 0.0855348415
A131: 128 | B131: 872 | C131: =(1000-B131)/RR+SQRT(B131^2+200^2)/s -> 158.9531251 | D131: =-1/RR+B131/SQRT(B131^2+200^2)/s -> 0.08552554645
A132: 129 | B132: 871 | C132: 158.8676043 | D132: 0.08551622097
A133: 130 | B133: 870 | C133: 158.7820927 | D133: 0.08550686492
A134: 131 | B134: 869 | C134: 158.6965905 | D134: 0.08549747819
A135: 132 | B135: 868 | C135: 158.6110978 | D135: 0.08548806062
A136: 133 | B136: 867 | C136: 158.5256144 | D136: 0.0854786121
A137: 134 | B137: 866 | C137: 158.4401405 | D137: 0.08546913249
A138: 135 | B138: 865 | C138: 158.3546762 | D138: 0.08545962165
A139: 136 | B139: 864 | C139: 158.2692213 | D139: 0.08545007944
A140: 137 | B140: 863 | C140: 158.183776 | D140: 0.08544050574
A141: 138 | B141: 862 | C141: 158.0983403 | D141: 0.08543090039
A142: 139 | B142: 861 | C142: 158.0129142 | D142: 0.08542126328
A143: 140 | B143: 860 | C143: 157.9274978 | D143: 0.08541159425
A144: 141 | B144: 859 | C144: 157.8420911 | D144: 0.08540189317
A145: 142 | B145: 858 | C145: 157.756694 | D145: 0.0853921599
A146: 143 | B146: 857 | C146: 157.6713067 | D146: 0.0853823943
A147: 144 | B147: 856 | C147: 157.5859292 | D147: 0.08537259622
A148: 145 | B148: 855 | C148: 157.5005616 | D148: 0.08536276553
A149: 146 | B149: 854 | C149: 157.4152037 | D149: 0.08535290208
A150: 147 | B150: 853 | C150: 157.3298558 | D150: 0.08534300572
A151: 148 | B151: 852 | C151: 157.2445177 | D151: 0.08533307632
A152: 149 | B152: 851 | C152: 157.1591896 | D152: 0.08532311373
A153: 150 | B153: 850 | C153: 157.0738715 | D153: 0.0853131178
A154: 151 | B154: 849 | C154: 156.9885634 | D154: 0.08530308838
A155: 152 | B155: 848 | C155: 156.9032653 | D155: 0.08529302534
A156: 153 | B156: 847 | C156: 156.8179774 | D156: 0.08528292851
A157: 154 | B157: 846 | C157: 156.7326995 | D157: 0.08527279775
A158: 155 | B158: 845 | C158: 156.6474318 | D158: 0.08526263291
A159: 156 | B159: 844 | C159: 156.5621742 | D159: 0.08525243384
A160: 157 | B160: 843 | C160: 156.4769269 | D160: 0.08524220038
A161: 158 | B161: 842 | C161: 156.3916899 | D161: 0.08523193239
A162: 159 | B162: 841 | C162: 156.3064631 | D162: 0.08522162971
A163: 160 | B163: 840 | C163: 156.2212466 | D163: 0.08521129219
A164: 161 | B164: 839 | C164: 156.1360405 | D164: 0.08520091967
A165: 162 | B165: 838 | C165: 156.0508448 | D165: 0.085190512
A166: 163 | B166: 837 | C166: 155.9656595 | D166: 0.08518006901
A167: 164 | B167: 836 | C167: 155.8804847 | D167: 0.08516959056
A168: 165 | B168: 835 | C168: 155.7953203 | D168: 0.08515907648
A169: 166 | B169: 834 | C169: 155.7101665 | D169: 0.08514852661
A170: 167 | B170: 833 | C170: 155.6250233 | D170: 0.0851379408
A171: 168 | B171: 832 | C171: 155.5398906 | D171: 0.08512731888
A172: 169 | B172: 831 | C172: 155.4547686 | D172: 0.08511666069
A173: 170 | B173: 830 | C173: 155.3696573 | D173: 0.08510596606
A174: 171 | B174: 829 | C174: 155.2845567 | D174: 0.08509523484
A175: 172 | B175: 828 | C175: 155.1994669 | D175: 0.08508446686
A176: 173 | B176: 827 | C176: 155.1143878 | D176: 0.08507366195
A177: 174 | B177: 826 | C177: 155.0293196 | D177: 0.08506281995
A178: 175 | B178: 825 | C178: 154.9442622 | D178: 0.08505194069
A179: 176 | B179: 824 | C179: 154.8592157 | D179: 0.085041024
A180: 177 | B180: 823 | C180: 154.7741801 | D180: 0.08503006971
A181: 178 | B181: 822 | C181: 154.6891556 | D181: 0.08501907765
A182: 179 | B182: 821 | C182: 154.604142 | D182: 0.08500804765
A183: 180 | B183: 820 | C183: 154.5191395 | D183: 0.08499697954
A184: 181 | B184: 819 | C184: 154.4341481 | D184: 0.08498587314
A185: 182 | B185: 818 | C185: 154.3491678 | D185: 0.08497472829
A186: 183 | B186: 817 | C186: 154.2641986 | D186: 0.0849635448
A187: 184 | B187: 816 | C187: 154.1792407 | D187: 0.08495232249
A188: 185 | B188: 815 | C188: 154.094294 | D188: 0.0849410612
A189: 186 | B189: 814 | C189: 154.0093586 | D189: 0.08492976075
A190: 187 | B190: 813 | C190: 153.9244345 | D190: 0.08491842094
A191: 188 | B191: 812 | C191: 153.8395217 | D191: 0.08490704162
A192: 189 | B192: 811 | C192: 153.7546204 | D192: 0.08489562258
A193: 190 | B193: 810 | C193: 153.6697305 | D193: 0.08488416366
A194: 191 | B194: 809 | C194: 153.5848521 | D194: 0.08487266467
A195: 192 | B195: 808 | C195: =(1000-B195)/RR+SQRT(B195^2+200^2)/s -> 153.4999852 | D195: =-1/RR+B195/SQRT(B195^2+200^2)/s -> 0.08486112542
A196: 193 | B196: 807 | C196: 153.4151299 | D196: 0.08484954573
A197: 194 | B197: 806 | C197: 153.3302861 | D197: 0.08483792541
A198: 195 | B198: 805 | C198: 153.245454 | D198: 0.08482626428
A199: 196 | B199: 804 | C199: 153.1606336 | D199: 0.08481456214
A200: 197 | B200: 803 | C200: 153.0758249 | D200: 0.08480281882
... 803 more rows

Sheet Sheet3
A1: =xMin -> 0 | B1: =9 -> 9
A2: =A1+dx -> 1 | B2: =9 -> 9
A3: 2 | B3: =9 -> 9
A4: 3 | B4: =9 -> 9
A5: 4 | B5: =9 -> 9
A6: 5 | B6: =9 -> 9
A7: 6 | B7: =9 -> 9
A8: 7 | B8: =9 -> 9
A9: 8 | B9: =9 -> 9
A10: 9 | B10: =9 -> 9
A11: 10 | B11: =9 -> 9
A12: 11 | B12: =9 -> 9
A13: 12 | B13: =9 -> 9
A14: 13 | B14: =9 -> 9
A15: 14 | B15: =9 -> 9
A16: 15 | B16: =9 -> 9
A17: 16 | B17: =9 -> 9
A18: 17 | B18: =9 -> 9
A19: 18 | B19: =9 -> 9
A20: 19 | B20: =9 -> 9
A21: 20 | B21: =9 -> 9
A22: 21 | B22: =9 -> 9
A23: 22 | B23: =9 -> 9
A24: 23 | B24: =9 -> 9
A25: 24 | B25: =9 -> 9
A26: 25 | B26: =9 -> 9
A27: 26 | B27: =9 -> 9
A28: 27 | B28: =9 -> 9
A29: 28 | B29: =9 -> 9
A30: 29 | B30: =9 -> 9
A31: 30 | B31: =9 -> 9
A32: 31 | B32: =9 -> 9
A33: 32 | B33: =9 -> 9
A34: 33 | B34: =9 -> 9
A35: 34 | B35: =9 -> 9
A36: 35 | B36: =9 -> 9
A37: 36 | B37: =9 -> 9
A38: 37 | B38: =9 -> 9
A39: 38 | B39: =9 -> 9
A40: 39 | B40: =9 -> 9
A41: 40 | B41: =9 -> 9
A42: 41 | B42: =9 -> 9
A43: 42 | B43: =9 -> 9
A44: 43 | B44: =9 -> 9
A45: 44 | B45: =9 -> 9
A46: 45 | B46: =9 -> 9
A47: 46 | B47: =9 -> 9
A48: 47 | B48: =9 -> 9
A49: 48 | B49: =9 -> 9
A50: 49 | B50: =9 -> 9
A51: 50 | B51: =9 -> 9
A52: 51 | B52: =9 -> 9
A53: 52 | B53: =9 -> 9
A54: 53 | B54: =9 -> 9
A55: 54 | B55: =9 -> 9
A56: 55 | B56: =9 -> 9
A57: 56 | B57: =9 -> 9
A58: 57 | B58: =9 -> 9
A59: 58 | B59: =9 -> 9
A60: 59 | B60: =9 -> 9
A61: 60 | B61: =9 -> 9
A62: 61 | B62: =9 -> 9
A63: 62 | B63: =9 -> 9
A64: 63 | B64: =9 -> 9
A65: 64 | B65: =9 -> 9
A66: =A65+dx -> 65 | B66: =9 -> 9
A67: 66 | B67: =9 -> 9
A68: 67 | B68: =9 -> 9
A69: 68 | B69: =9 -> 9
A70: 69 | B70: =9 -> 9
A71: 70 | B71: =9 -> 9
A72: 71 | B72: =9 -> 9
A73: 72 | B73: =9 -> 9
A74: 73 | B74: =9 -> 9
A75: 74 | B75: =9 -> 9
A76: 75 | B76: =9 -> 9
A77: 76 | B77: =9 -> 9
A78: 77 | B78: =9 -> 9
A79: 78 | B79: =9 -> 9
A80: 79 | B80: =9 -> 9
A81: 80 | B81: =9 -> 9
A82: 81 | B82: =9 -> 9
A83: 82 | B83: =9 -> 9
A84: 83 | B84: =9 -> 9
A85: 84 | B85: =9 -> 9
A86: 85 | B86: =9 -> 9
A87: 86 | B87: =9 -> 9
A88: 87 | B88: =9 -> 9
A89: 88 | B89: =9 -> 9
A90: 89 | B90: =9 -> 9
A91: 90 | B91: =9 -> 9
A92: 91 | B92: =9 -> 9
A93: 92 | B93: =9 -> 9
A94: 93 | B94: =9 -> 9
A95: 94 | B95: =9 -> 9
A96: 95 | B96: =9 -> 9
A97: 96 | B97: =9 -> 9
A98: 97 | B98: =9 -> 9
A99: 98 | B99: =9 -> 9
A100: 99 | B100: =9 -> 9
A101: 100 | B101: =9 -> 9
A102: 101 | B102: =9 -> 9
A103: 102 | B103: =9 -> 9
A104: 103 | B104: =9 -> 9
A105: 104 | B105: =9 -> 9
A106: 105 | B106: =9 -> 9
A107: 106 | B107: =9 -> 9
A108: 107 | B108: =9 -> 9
A109: 108 | B109: =9 -> 9
A110: 109 | B110: =9 -> 9
A111: 110 | B111: =9 -> 9
A112: 111 | B112: =9 -> 9
A113: 112 | B113: =9 -> 9
A114: 113 | B114: =9 -> 9
A115: 114 | B115: =9 -> 9
A116: 115 | B116: =9 -> 9
A117: 116 | B117: =9 -> 9
A118: 117 | B118: =9 -> 9
A119: 118 | B119: =9 -> 9
A120: 119 | B120: =9 -> 9
A121: 120 | B121: =9 -> 9
A122: 121 | B122: =9 -> 9
A123: 122 | B123: =9 -> 9
A124: 123 | B124: =9 -> 9
A125: 124 | B125: =9 -> 9
A126: 125 | B126: =9 -> 9
A127: 126 | B127: =9 -> 9
A128: 127 | B128: =9 -> 9
A129: 128 | B129: =9 -> 9
A130: =A129+dx -> 129 | B130: =9 -> 9
A131: 130 | B131: =9 -> 9
A132: 131 | B132: =9 -> 9
A133: 132 | B133: =9 -> 9
A134: 133 | B134: =9 -> 9
A135: 134 | B135: =9 -> 9
A136: 135 | B136: =9 -> 9
A137: 136 | B137: =9 -> 9
A138: 137 | B138: =9 -> 9
A139: 138 | B139: =9 -> 9
A140: 139 | B140: =9 -> 9
A141: 140 | B141: =9 -> 9
A142: 141 | B142: =9 -> 9
A143: 142 | B143: =9 -> 9
A144: 143 | B144: =9 -> 9
A145: 144 | B145: =9 -> 9
A146: 145 | B146: =9 -> 9
A147: 146 | B147: =9 -> 9
A148: 147 | B148: =9 -> 9
A149: 148 | B149: =9 -> 9
A150: 149 | B150: =9 -> 9
A151: 150 | B151: =9 -> 9
A152: 151 | B152: =9 -> 9
A153: 152 | B153: =9 -> 9
A154: 153 | B154: =9 -> 9
A155: 154 | B155: =9 -> 9
A156: 155 | B156: =9 -> 9
A157: 156 | B157: =9 -> 9
A158: 157 | B158: =9 -> 9
A159: 158 | B159: =9 -> 9
A160: 159 | B160: =9 -> 9
A161: 160 | B161: =9 -> 9
A162: 161 | B162: =9 -> 9
A163: 162 | B163: =9 -> 9
A164: 163 | B164: =9 -> 9
A165: 164 | B165: =9 -> 9
A166: 165 | B166: =9 -> 9
A167: 166 | B167: =9 -> 9
A168: 167 | B168: =9 -> 9
A169: 168 | B169: =9 -> 9
A170: 169 | B170: =9 -> 9
A171: 170 | B171: =9 -> 9
A172: 171 | B172: =9 -> 9
A173: 172 | B173: =9 -> 9
A174: 173 | B174: =9 -> 9
A175: 174 | B175: =9 -> 9
A176: 175 | B176: =9 -> 9
A177: 176 | B177: =9 -> 9
A178: 177 | B178: =9 -> 9
A179: 178 | B179: =9 -> 9
A180: 179 | B180: =9 -> 9
A181: 180 | B181: =9 -> 9
A182: 181 | B182: =9 -> 9
A183: 182 | B183: =9 -> 9
A184: 183 | B184: =9 -> 9
A185: 184 | B185: =9 -> 9
A186: 185 | B186: =9 -> 9
A187: 186 | B187: =9 -> 9
A188: 187 | B188: =9 -> 9
A189: 188 | B189: =9 -> 9
A190: 189 | B190: =9 -> 9
A191: 190 | B191: =9 -> 9
A192: 191 | B192: =9 -> 9
A193: 192 | B193: =9 -> 9
A194: =A193+dx -> 193 | B194: =9 -> 9
A195: 194 | B195: =9 -> 9
A196: 195 | B196: =9 -> 9
A197: 196 | B197: =9 -> 9
A198: 197 | B198: =9 -> 9
A199: 198 | B199: =9 -> 9
A200: 199 | B200: =9 -> 9
... 803 more rows
